[Event "ESTCC-50 2025"]
[Site "Swidnica"]
[Date "2025.04.09"]
[Round "5.9"]
[White "Zych, Marek"]
[Black "Buckley, Graeme N"]
[Result "1-0"]
[Annotator "ChessBase"]
[ECO "A04"]
[WhiteElo "1942"]
[BlackElo "2268"]
[PlyCount "99"]
[EventDate "2025.04.05"]
[EventType "team-tourn"]
[EventCountry "POL"]
[SourceTitle "playchess.com"]
[Source "ChessBase"]
[SourceQuality "1"]
[WhiteTeam "Poland"]
[BlackTeam "England"]
[WhiteTeamCountry "POL"]
[BlackTeamCountry "ENG"]
[TimeControl "40/5400+30:1800+30"]

1. Nf3 {[%emt 0:00:27]} c5 {[%emt 0:00:05]} 2. c4 {[%emt 0:00:09]} Nc6 {[%emt 0:00:08]} 3. Nc3 {[%emt 0:00:11]} e5 {[%emt 0:03:20]} 4. g3 {[%emt 0:01:48]} g6 {[%emt 0:00:25]} 5. Bg2 {[%emt 0:00:30]} Bg7 {[%emt 0:02:21]} 6. d3 {[%emt 0:00:20]} d6 {[%emt 0:01:00]} 7. Nd2 {[%emt 0:00:23]} Nge7 {[%emt 0:01:49]} 8. Nf1 {[%emt 0:00:41]} Rb8 {[%emt 0:04:16]} 9. Ne3 {[%emt 0:04:04]} O-O {[%emt 0:01:43]} 10. a3 {[%emt 0:05:57]} a6 {[%emt 0:04:12]} 11. Rb1 {[%emt 0:00:28]} b5 {[%emt 0:00:49]} 12. cxb5 {[%emt 0:00:19]} axb5 {[%emt 0:00:22]} 13. b4 {[%emt 0:00:09]} cxb4 {[%emt 0:14:52]} 14. axb4 {[%emt 0:00:04]} Nd4 {[%emt 0:00:27]} 15. Ned5 {[%emt 0:03:39]} Nxd5 {[%emt 0:10:53]} 16. Nxd5 {[%emt 0:00:23]} Bb7 {[%emt 0:03:18]} 17. e3 {[%emt 0:03:36]} Ne6 {[%emt 0:02:05]} 18. O-O {[%emt 0:00:45]} Kh8 {[%emt 0:02:49]} 19. Bd2 {[%emt 0:04:33]} f5 {[%emt 0:03:20]} 20. f4 {[%emt 0:00:32]} Qd7 {[%emt 0:03:53]} 21. Qb3 {[%emt 0:01:19]} Qf7 {[%emt 0:02:52]} 22. Rfc1 {[%emt 0:03:51]} g5 {[%emt 0:01:30]} 23. fxg5 {[%emt 0:07:34]} Nxg5 {[%emt 0:00:29]} 24. Rc7 {[%emt 0:11:23]} Qh5 {[%emt 0:00:36]} 25. Qd1 {[%emt 0:00:45]} Nh3+ {[%emt 0:00:47]} 26. Kf1 {[%emt 0:00:30]} Qh6 {[%emt 0:01:34]} 27. Qe2 {[%emt 0:03:40]} f4 {[%emt 0:09:27]} 28. exf4 {[%emt 0:01:34]} Bxd5 {[%emt 0:01:00]} 29. Bxd5 {[%emt 0:02:15]} exf4 {[%emt 0:00:07]} 30. Kg2 {[%emt 0:02:27]} Rbe8 {[%emt 0:01:16]} 31. Qg4 {[%emt 0:04:46]} f3+ {[%emt 0:03:08]} 32. Kf1 {[%emt 0:00:34]} Qg6 {[%emt 0:01:49]} 33. Qxg6 {[%emt 0:01:25]} hxg6 {[%emt 0:00:02]} 34. Re1 {[%emt 0:07:42]} Rxe1+ {[%emt 0:12:57]} 35. Bxe1 {[%emt 0:01:51]} Ng5 {[%emt 0:00:03]} 36. Bd2 {[%emt 0:00:38]} Nh7 {[%emt 0:01:20]} 37. Rf7 {[%emt 0:00:21]} Rc8 {[%emt 0:03:05]} 38. Rxf3 {[%emt 0:01:00]} Nf6 {[%emt 0:02:13]} 39. Be6 {[%emt 0:01:17]} Rc2 {[%emt 0:02:29]} 40. Ke1 {[%emt 0:00:00]} Kh7 {[%emt 0:00:00]} 41. g4 {[%emt 0:01:02]} g5 {[%emt 0:06:54]} 42. Bxg5 {[%emt 0:01:59]} Ne8 {[%emt 0:00:02]} 43. Bf7 {[%emt 0:01:06]} Bc3+ {[%emt 0:01:03]} 44. Kd1 {[%emt 0:00:30]} Rxh2 {[%emt 0:00:13]} 45. Bxe8 {[%emt 0:00:16]} Rg2 {[%emt 0:00:58]} 46. Bh5 {[%emt 0:03:43]} Kg8 {[%emt 0:03:38]} 47. Rf5 {[%emt 0:01:12]} Bxb4 {[%emt 0:00:24]} 48. Rxb5 {[%emt 0:00:03]} Bc3 {[%emt 0:00:43]} 49. Rd5 {[%emt 0:00:53]} Be5 {[%emt 0:00:27]} 50. Be7 {[%emt 0:00:21]} 1-0

[Event "ESTCC-50 2025"]
[Site "Swidnica"]
[Date "2025.04.09"]
[Round "5.10"]
[White "Dickenson, Neil F"]
[Black "Stec, Czeslaw"]
[Result "1-0"]
[Annotator "ChessBase"]
[ECO "D00"]
[WhiteElo "2250"]
[BlackElo "1820"]
[PlyCount "47"]
[EventDate "2025.04.05"]
[EventType "team-tourn"]
[EventCountry "POL"]
[SourceTitle "playchess.com"]
[Source "ChessBase"]
[SourceQuality "1"]
[WhiteTeam "England"]
[BlackTeam "Poland"]
[WhiteTeamCountry "ENG"]
[BlackTeamCountry "POL"]
[TimeControl "40/5400+30:1800+30"]

1. d4 {[%emt 0:00:09]} d5 {[%emt 0:00:08]} 2. Bf4 {[%emt 0:00:21]} Nf6 {[%emt 0:00:24]} 3. e3 {[%emt 0:00:08]} Bf5 {[%emt 0:00:15]} 4. c4 {[%emt 0:00:32]} c6 {[%emt 0:00:20]} 5. Nc3 {[%emt 0:00:12]} e6 {[%emt 0:00:14]} 6. Qb3 {[%emt 0:01:04]} Qb6 {[%emt 0:00:16]} 7. c5 {[%emt 0:01:19]} Qxb3 {[%emt 0:00:12]} 8. axb3 {[%emt 0:00:05]} Nbd7 {[%emt 0:00:06]} 9. b4 {[%emt 0:00:44]} Nh5 {[%emt 0:00:51]} 10. b5 {[%emt 0:07:11]} Nxf4 {[%emt 0:00:20]} 11. exf4 {[%emt 0:00:05]} f6 {[%emt 0:00:19]} 12. b4 {[%emt 0:03:57]} e5 {[%emt 0:00:16]} 13. fxe5 {[%emt 0:00:24]} fxe5 {[%emt 0:00:09]} 14. Nf3 {[%emt 0:00:33]} Bg4 {[%emt 0:03:21]} 15. Nxe5 {[%emt 0:00:46]} Nxe5 {[%emt 0:00:22]} 16. dxe5 {[%emt 0:00:05]} g5 {[%emt 0:00:44]} 17. bxc6 {[%emt 0:12:30]} bxc6 {[%emt 0:00:11]} 18. Ra6 {[%emt 0:00:06]} Bd7 {[%emt 0:01:55]} 19. e6 {[%emt 0:01:05]} Bxe6 {[%emt 0:05:00]} 20. Rxc6 {[%emt 0:00:08]} Kf7 {[%emt 0:00:45]} 21. Be2 {[%emt 0:01:48]} h5 {[%emt 0:02:11]} 22. O-O {[%emt 0:01:03]} Bg7 {[%emt 0:00:40]} 23. Nb5 {[%emt 0:00:43]} Bd7 {[%emt 0:02:24]} 24. Rc7 {[%emt 0:00:32]} 1-0

[Event "ESTCC-50 2025"]
[Site "Swidnica"]
[Date "2025.04.09"]
[Round "5.11"]
[White "Zaremba, Artur"]
[Black "Duncan, Chris R"]
[Result "0-1"]
[Annotator "ChessBase"]
[ECO "B56"]
[WhiteElo "2133"]
[BlackElo "2178"]
[PlyCount "44"]
[EventDate "2025.04.05"]
[EventType "team-tourn"]
[EventCountry "POL"]
[SourceTitle "playchess.com"]
[Source "ChessBase"]
[SourceQuality "1"]
[WhiteTeam "Poland"]
[BlackTeam "England"]
[WhiteTeamCountry "POL"]
[BlackTeamCountry "ENG"]
[TimeControl "40/5400+30:1800+30"]

1. e4 {[%emt 0:00:23]} c5 {[%emt 0:00:05]} 2. Nf3 {[%emt 0:00:20]} d6 {[%emt 0:00:05]} 3. d4 {[%emt 0:00:17]} cxd4 {[%emt 0:00:06]} 4. Nxd4 {[%emt 0:00:11]} Nf6 {[%emt 0:00:06]} 5. Nc3 {[%emt 0:00:27]} Bd7 {[%emt 0:00:30]} 6. Be2 {[%emt 0:01:37]} g6 {[%emt 0:00:29]} 7. Be3 {[%emt 0:00:56]} Bg7 {[%emt 0:00:05]} 8. O-O {[%emt 0:01:16]} O-O {[%emt 0:00:19]} 9. Qd2 {[%emt 0:00:42]} Nc6 {[%emt 0:00:18]} 10. f4 {[%emt 0:02:11]} Rc8 {[%emt 0:03:52]} 11. Nxc6 {[%emt 0:04:25]} Bxc6 {[%emt 0:00:48]} 12. Bf3 {[%emt 0:00:09]} Qc7 {[%emt 0:11:45]} 13. Rae1 {[%emt 0:05:16]} b5 {[%emt 0:05:42]} 14. a3 {[%emt 0:05:15]} a5 {[%emt 0:01:33]} 15. e5 {[%emt 0:14:43]} dxe5 {[%emt 0:09:14]} 16. fxe5 {[%emt 0:00:14]} Qxe5 {[%emt 0:02:04]} 17. Bb6 {[%emt 0:00:19]} Qb8 {[%emt 0:00:54]} 18. Qf2 {[%emt 0:07:42]} b4 {[%emt 0:04:34]} 19. axb4 {[%emt 0:02:24]} axb4 {[%emt 0:00:07]} 20. Nd1 {[%emt 0:11:37]} Bb5 {[%emt 0:07:44]} 21. Ba7 {[%emt 0:04:36]} Qc7 {[%emt 0:01:41]} 22. Bb6 {[%emt 0:00:09]} Qd6 {[%emt 0:03:52]} 0-1

[Event "ESTCC-50 2025"]
[Site "Swidnica"]
[Date "2025.04.09"]
[Round "5.12"]
[White "Noyce, Robert C"]
[Black "Kilanski, Janusz"]
[Result "1-0"]
[Annotator "NA"]
[ECO "A22"]
[WhiteElo "2065"]
[BlackElo "1670"]
[PlyCount "85"]
[EventDate "2025.04.05"]
[EventType "team-tourn"]
[EventCountry "POL"]
[SourceTitle "playchess.com"]
[Source "ChessBase"]
[SourceQuality "1"]
[WhiteTeam "England"]
[BlackTeam "Poland"]
[WhiteTeamCountry "ENG"]
[BlackTeamCountry "POL"]
[TimeControl "40/5400+30:1800+30"]

1. c4 {[%emt 0:00:04]} e5 {[%emt 0:00:22]} 2. Nc3 {[%emt 0:00:07]} Nf6 {[%emt 0:00:17]} 3. g3 {[%emt 0:00:12]} c6 {[%emt 0:00:43]} 4. Bg2 {[%emt 0:00:52]} Bc5 {[%emt 0:01:26]} 5. e3 {[%emt 0:01:10]} Qe7 {[%emt 0:01:19]} 6. Nge2 {[%emt 0:00:52]} d6 {[%emt 0:05:29]} 7. O-O {[%emt 0:07:12]} Bg4 {[%emt 0:02:40]} 8. h3 {[%emt 0:02:20]} Bh5 {[%emt 0:02:15]} 9. d4 {[%emt 0:04:23]} Bb6 {[%emt 0:01:51]} 10. b4 {[%emt 0:18:09]} a6 {[%emt 0:13:31]} 11. c5 {[%emt 0:05:52]} Bc7 {[%emt 0:01:07]} 12. g4 {[%emt 0:07:49]} Bg6 {[%emt 0:01:08]} 13. f4 {[%emt 0:01:27]} h6 {[%emt 0:02:21]} 14. cxd6 {[%emt 0:01:44]} Bxd6 {[%emt 0:04:04]} 15. dxe5 {[%emt 0:02:35]} Bxe5 {[%emt 0:04:54]} 16. fxe5 {[%emt 0:00:40]} Qxe5 {[%emt 0:00:03]} 17. Qd4 {[%emt 0:00:41]} Nbd7 {[%emt 0:02:24]} 18. Qxe5+ {[%emt 0:05:01]} Nxe5 {[%emt 0:00:05]} 19. Nf4 {[%emt 0:00:15]} Bh7 {[%emt 0:00:18]} 20. e4 {[%emt 0:01:21]} Nc4 {[%emt 0:05:20]} 21. Re1 {[%emt 0:02:04]} Nd7 {[%emt 0:03:41]} 22. Be3 {[%emt 0:01:42]} O-O {[%emt 0:03:24]} 23. Rad1 {[%emt 0:02:59]} Nde5 {[%emt 0:06:51]} 24. Nd3 {[%emt 0:01:54]} Rad8 {[%emt 0:04:56]} 25. Nxe5 {[%emt 0:01:17]} Rxd1 {[%emt 0:00:23]} 26. Rxd1 {[%emt 0:02:22]} Nxe3 {[%emt 0:00:43]} 27. Rd7 {[%emt 0:06:48]} f6 {[%emt 0:01:08]} 28. Nd3 {[%emt 0:02:25]} b6 {[%emt 0:02:20]} 29. Bf3 {[%emt 0:00:57]} Bg6 {[%emt 0:07:05]} 30. Kf2 {[%emt 0:02:08]} Nc4 {[%emt 0:00:28]} 31. Bd1 {[%emt 0:02:25]} Kh8 {[%emt 0:03:41]} 32. Rc7 {[%emt 0:02:46]} Rd8 {[%emt 0:04:23]} 33. Rxc6 {[%emt 0:05:14]} Bf7 {[%emt 0:04:29]} 34. Be2 {[%emt 0:01:42]} Rb8 {[%emt 0:03:10]} 35. Nd5 {[%emt 0:02:31]} a5 {[%emt 0:01:12]} 36. Rxc4 {[%emt 0:00:15]} Rd8 {[%emt 0:02:48]} 37. bxa5 {[%emt 0:00:57]} bxa5 {[%emt 0:00:31]} 38. Rc5 {[%emt 0:00:20]} a4 {[%emt 0:00:29]} 39. Ra5 {[%emt 0:00:20]} Be8 {[%emt 0:00:35]} 40. Nb6 {[%emt 0:00:00]} Bc6 {[%emt 0:00:00]} 41. Ke3 {[%emt 0:01:34]} Re8 {[%emt 0:02:39]} 42. Bf3 {[%emt 0:00:41]} g6 {[%emt 0:01:07]} 43. Nxa4 {[%emt 0:00:46]} 1-0

[Event "ESTCC-50 2025"]
[Site "Swidnica"]
[Date "2025.04.09"]
[Round "5.13"]
[White "Adams, Michael"]
[Black "Rogowski, Jaroslaw"]
[Result "1-0"]
[Annotator "TA"]
[ECO "C84"]
[WhiteElo "2661"]
[BlackElo "2050"]
[PlyCount "53"]
[EventDate "2025.04.05"]
[EventType "team-tourn"]
[EventCountry "POL"]
[SourceTitle "playchess.com"]
[Source "ChessBase"]
[SourceQuality "1"]
[WhiteTeam "England"]
[BlackTeam "Poland"]
[WhiteTeamCountry "ENG"]
[BlackTeamCountry "POL"]
[TimeControl "40/5400+30:1800+30"]

{[%evp 17,53,9,37,16,11,13,20,13,18,14,38,13,69,55,48,52,64,27,70,64,93,90,112,68,61,76,93,90,81,85,120,114,147,145,279,277,356,347]} 1. e4 {[%emt 0:00:03]} e5 {[%emt 0:00:32]} 2. Nf3 {[%emt 0:00:11]} Nc6 {[%emt 0:00:05]} 3. Bb5 {[%emt 0:00:13]} a6 {[%emt 0:00:12]} 4. Ba4 {[%emt 0:00:05]} Nf6 {[%emt 0:00:08]} 5. O-O {[%emt 0:00:54]} Be7 {[%emt 0:01:26]} 6. d3 {[%emt 0:00:57]} b5 {[%emt 0:00:33]} 7. Bb3 {[%emt 0:00:07]} d6 {[%emt 0:00:46]} 8. a4 {[%emt 0:01:39]} Bg4 {[%emt 0:05:10][%cal Bc8g4,Bg4h5,Bh5g6][%mdl 32]} 9. c3 {[%emt 0:01:42]} O-O {[%emt 0:01:12]} 10. Nbd2 {[%emt 0:01:12][%cal Bb1d2,Bd2f1,Bf1g3][%mdl 32] C84: Closed Ruy Lopez: Unusual White 6th moves.} Na5 {[%emt 0:21:23]} 11. Bc2 {[%emt 0:00:12]} c5 {[%emt 0:00:58]} 12. h3 {[%emt 0:02:01] The position is equal.} Bh5 {[%emt 0:01:40]} 13. Re1 {[%emt 0:02:30]} Re8 {[%emt 0:08:32]} 14. Nf1 {[%emt 0:06:25]} Nc6 {[%emt 0:04:23]} (14... b4 $11) 15. Ng3 $14 {[%emt 0:01:59]} Bg6 {[%emt 0:00:47]} 16. Nh4 {[%emt 0:11:52]} d5 {[%emt 0:05:05]} 17. Nhf5 $146 {[%emt 0:01:00]} (17. Ngf5 {keeps more tension.} d4 18. Bg5 dxc3 19. bxc3 b4 20. Bb3) (17. axb5 axb5 18. Rxa8 Qxa8 19. Nxg6 hxg6 20. exd5 Nxd5 21. Qf3 Nf6 22. Bg5 Qc8 23. h4 {½-½ Balashov,Y (2407)-Trifonov,P (2213) Vladimir op-A 2008 (6)}) 17... dxe4 {[%emt 0:06:37]} 18. dxe4 {[%emt 0:00:11]} Qxd1 {[%emt 0:05:37]} 19. Rxd1 {[%emt 0:00:17]} ({Resist} 19. Bxd1 Bf8 $14) 19... Bf8 {[%emt 0:05:49]} 20. Bg5 {[%emt 0:05:14]} Nh5 {[%emt 0:02:21]} 21. Nxh5 {[%emt 0:07:45]} Bxh5 {[%emt 0:00:10]} 22. g4 {[%emt 0:00:26]} Bg6 {[%emt 0:03:38]} 23. Be3 {[%emt 0:07:27]} b4 {[%emt 0:04:15]} 24. Bb3 {[%emt 0:05:23]} Na5 {[%emt 0:02:41]} 25. Bd5 {[%emt 0:00:13] [#] Strongly threatening cxb4. White has more active pieces.} Rac8 {[%emt 0:04:06]} (25... Rab8 $16 26. cxb4 cxb4) 26. cxb4 $18 cxb4 {[%emt 0:00:16]} 27. Rac1 {[%emt 0:02:54] Inhibits Nc4.   Weighted Error Value: White=0.08 (flawless) /Black=0.33  Mistake:       	---       	Black=2      Inaccurate:     	White=2     	Black=3      OK:         	White=9     	Black=3      Best:        	White=1     	Black=1} 1-0

[Event "ESTCC-50 2025"]
[Site "Swidnica"]
[Date "2025.04.09"]
[Round "5.14"]
[White "Ograbek, Grzegorz"]
[Black "Flear, Glenn C"]
[Result "0-1"]
[Annotator "ChessBase"]
[ECO "D47"]
[WhiteElo "2068"]
[BlackElo "2366"]
[PlyCount "98"]
[EventDate "2025.04.05"]
[EventType "team-tourn"]
[EventCountry "POL"]
[SourceTitle "playchess.com"]
[Source "ChessBase"]
[SourceQuality "1"]
[WhiteTeam "Poland"]
[BlackTeam "England"]
[WhiteTeamCountry "POL"]
[BlackTeamCountry "ENG"]
[TimeControl "40/5400+30:1800+30"]

1. d4 {[%emt 0:00:05]} d5 {[%emt 0:00:22]} 2. c4 {[%emt 0:00:18]} e6 {[%emt 0:00:11]} 3. Nc3 {[%emt 0:00:24]} Nf6 {[%emt 0:00:15]} 4. Nf3 {[%emt 0:00:23]} c6 {[%emt 0:00:56]} 5. e3 {[%emt 0:00:44]} Nbd7 {[%emt 0:00:13]} 6. Bd3 {[%emt 0:00:34]} dxc4 {[%emt 0:00:22]} 7. Bxc4 {[%emt 0:00:08]} b5 {[%emt 0:00:07]} 8. Bd3 {[%emt 0:00:31]} Bb7 {[%emt 0:00:15]} 9. O-O {[%emt 0:00:30]} a6 {[%emt 0:00:49]} 10. e4 {[%emt 0:00:40]} c5 {[%emt 0:00:10]} 11. d5 {[%emt 0:00:36]} Qc7 {[%emt 0:01:21]} 12. dxe6 {[%emt 0:00:44]} fxe6 {[%emt 0:00:08]} 13. Bc2 {[%emt 0:00:25]} O-O-O {[%emt 0:02:07]} 14. Qe2 {[%emt 0:01:41]} Bd6 {[%emt 0:12:42]} 15. Ng5 {[%emt 0:04:50]} Nf8 {[%emt 0:00:58]} 16. f4 {[%emt 0:00:24]} h6 {[%emt 0:07:36]} 17. Nf3 {[%emt 0:04:24]} Bxf4 {[%emt 0:21:08]} 18. Bxf4 {[%emt 0:00:11]} Qxf4 {[%emt 0:00:08]} 19. Rae1 {[%emt 0:07:34]} N8d7 {[%emt 0:10:16]} 20. e5 {[%emt 0:19:32]} Bxf3 {[%emt 0:09:22]} 21. exf6 {[%emt 0:01:48]} Qd4+ {[%emt 0:01:57]} 22. Qf2 {[%emt 0:03:12]} Bb7 {[%emt 0:13:21]} 23. Be4 {[%emt 0:20:29]} Qxf2+ {[%emt 0:02:46]} 24. Rxf2 {[%emt 0:00:12]} Nxf6 {[%emt 0:00:13]} 25. Bxb7+ {[%emt 0:01:37]} Kxb7 {[%emt 0:00:08]} 26. Rxe6 {[%emt 0:00:18]} Rhe8 {[%emt 0:02:51]} 27. Rfe2 {[%emt 0:00:21]} Rxe6 {[%emt 0:00:56]} 28. Rxe6 {[%emt 0:00:07]} c4 {[%emt 0:01:29]} 29. a3 {[%emt 0:18:54]} Re8 {[%emt 0:00:55]} 30. Rd6 {[%emt 0:00:17]} Re1+ {[%emt 0:00:28]} 31. Kf2 {[%emt 0:00:06]} Rc1 {[%emt 0:00:18]} 32. Re6 {[%emt 0:03:57]} Rc2+ {[%emt 0:00:34]} 33. Re2 {[%emt 0:00:35]} Ng4+ {[%emt 0:02:47]} 34. Kg3 {[%emt 0:06:05]} Rxe2 {[%emt 0:00:07]} 35. Nxe2 {[%emt 0:00:06]} Ne3 {[%emt 0:05:39]} 36. Nc3 {[%emt 0:00:38]} Kc6 {[%emt 0:00:25]} 37. Kf3 {[%emt 0:00:28]} Nd5 {[%emt 0:00:30]} 38. Nd1 {[%emt 0:03:20]} Kc5 {[%emt 0:00:41]} 39. Ke4 {[%emt 0:00:13]} a5 {[%emt 0:01:17]} 40. g3 {[%emt 0:00:00]} a4 {[%emt 0:00:00]} 41. Nc3 {[%emt 0:07:08]} Nf6+ {[%emt 0:09:28]} 42. Kf3 {[%emt 0:06:01]} b4 {[%emt 0:00:57]} 43. Nd1 {[%emt 0:01:31]} bxa3 {[%emt 0:06:31]} 44. bxa3 {[%emt 0:00:06]} Kd4 {[%emt 0:00:09]} 45. Ke2 {[%emt 0:01:17]} Ne4 {[%emt 0:03:19]} 46. Nb2 {[%emt 0:05:30]} c3 {[%emt 0:00:39]} 47. Nd3 {[%emt 0:00:43]} c2 {[%emt 0:00:10]} 48. Nc1 {[%emt 0:00:49]} Kc3 {[%emt 0:01:47]} 49. Ke3 {[%emt 0:01:25]} Nc5 {[%emt 0:00:13]} 0-1

[Event "ESTCC-50 2025"]
[Site "Swidnica"]
[Date "2025.04.09"]
[Round "5.15"]
[White "Davies, Nigel R"]
[Black "Czyz, Andrzej"]
[Result "1-0"]
[Annotator "ChessBase"]
[ECO "A14"]
[WhiteElo "2309"]
[BlackElo "1985"]
[PlyCount "95"]
[EventDate "2025.04.05"]
[EventType "team-tourn"]
[EventCountry "POL"]
[SourceTitle "playchess.com"]
[Source "ChessBase"]
[SourceQuality "1"]
[WhiteTeam "England"]
[BlackTeam "Poland"]
[WhiteTeamCountry "ENG"]
[BlackTeamCountry "POL"]
[TimeControl "40/5400+30:1800+30"]

1. Nf3 {[%emt 0:00:07]} d5 {[%emt 0:00:17]} 2. c4 {[%emt 0:00:15]} e6 {[%emt 0:00:17]} 3. g3 {[%emt 0:00:11]} Nf6 {[%emt 0:00:17]} 4. Bg2 {[%emt 0:00:09]} Be7 {[%emt 0:00:09]} 5. O-O {[%emt 0:00:08]} O-O {[%emt 0:00:18]} 6. b3 {[%emt 0:00:05]} c6 {[%emt 0:02:24]} 7. Bb2 {[%emt 0:00:14]} b6 {[%emt 0:00:49]} 8. Qc2 {[%emt 0:03:01]} Bb7 {[%emt 0:01:13]} 9. d4 {[%emt 0:03:30]} Nbd7 {[%emt 0:03:49]} 10. Nc3 {[%emt 0:00:15]} c5 {[%emt 0:00:36]} 11. cxd5 {[%emt 0:10:42]} exd5 {[%emt 0:04:19]} 12. Rad1 {[%emt 0:07:43]} Rc8 {[%emt 0:03:00]} 13. dxc5 {[%emt 0:00:44]} Nxc5 {[%emt 0:08:16]} 14. Qb1 {[%emt 0:01:53]} Nce4 {[%emt 0:09:52]} 15. Qa1 {[%emt 0:03:01]} Qc7 {[%emt 0:17:22]} 16. Nb5 {[%emt 0:07:14]} Qd7 {[%emt 0:01:32]} 17. Nbd4 {[%emt 0:00:15]} Rfd8 {[%emt 0:02:23]} 18. Ne5 {[%emt 0:00:29]} Qe8 {[%emt 0:02:01]} 19. Bh3 {[%emt 0:05:59]} Rc7 {[%emt 0:01:56]} 20. Nd3 {[%emt 0:05:00]} Bc5 {[%emt 0:06:02]} 21. Rc1 {[%emt 0:10:37]} Bc8 {[%emt 0:06:34]} 22. Bg2 {[%emt 0:03:19]} Bd6 {[%emt 0:04:29]} 23. Rxc7 {[%emt 0:00:22]} Bxc7 {[%emt 0:01:28]} 24. Rc1 {[%emt 0:00:35]} Bd6 {[%emt 0:08:18]} 25. Rc2 {[%emt 0:05:29]} Ba6 {[%emt 0:02:36]} 26. Nf5 {[%emt 0:01:44]} Qd7 {[%emt 0:02:19]} 27. Nxd6 {[%emt 0:01:20]} Qxd6 {[%emt 0:00:14]} 28. Be5 {[%emt 0:01:30]} Qe6 {[%emt 0:00:46]} 29. Nf4 {[%emt 0:04:17]} Qf5 {[%emt 0:00:12]} 30. Bh3 {[%emt 0:02:24]} Qg5 {[%emt 0:00:17]} 31. Bxf6 {[%emt 0:04:24]} Nxf6 {[%emt 0:01:56]} 32. Qd4 {[%emt 0:00:27]} h5 {[%emt 0:01:57]} 33. Qa4 {[%emt 0:02:21]} Bb7 {[%emt 0:04:09]} 34. Qxa7 {[%emt 0:02:42]} Ba8 {[%emt 0:00:48]} 35. Rc8 {[%emt 0:01:43]} Rxc8 {[%emt 0:00:01]} 36. Bxc8 {[%emt 0:00:08]} Bc6 {[%emt 0:00:03]} 37. Qxb6 {[%emt 0:00:14]} Be8 {[%emt 0:01:00]} 38. Qd4 {[%emt 0:00:23]} h4 39. a4 {[%emt 0:00:17]} hxg3 {[%emt 0:01:06]} 40. hxg3 {[%emt 0:00:00]} Qh6 {[%emt 0:00:00]} 41. a5 {[%emt 0:01:02]} g5 {[%emt 0:07:45]} 42. Ng2 {[%emt 0:01:16]} Qg6 {[%emt 0:00:36]} 43. Ne3 {[%emt 0:00:52]} Qb1+ {[%emt 0:07:00]} 44. Kg2 {[%emt 0:00:20]} Ne4 {[%emt 0:03:07]} 45. Bf5 {[%emt 0:00:52]} Qc1 {[%emt 0:04:06]} 46. Bxe4 {[%emt 0:01:08]} dxe4 {[%emt 0:00:24]} 47. Nf5 {[%emt 0:00:16]} f6 {[%emt 0:01:37]} 48. Qxf6 {[%emt 0:00:19]} 1-0

[Event "ESTCC-50 2025"]
[Site "Swidnica"]
[Date "2025.04.09"]
[Round "5.16"]
[White "Wielosz, Jaroslaw"]
[Black "Dishman, Stephen"]
[Result "0-1"]
[Annotator "ChessBase"]
[ECO "D23"]
[WhiteElo "1939"]
[BlackElo "2279"]
[PlyCount "76"]
[EventDate "2025.04.05"]
[EventType "team-tourn"]
[EventCountry "POL"]
[SourceTitle "playchess.com"]
[Source "ChessBase"]
[SourceQuality "1"]
[WhiteTeam "Poland"]
[BlackTeam "England"]
[WhiteTeamCountry "POL"]
[BlackTeamCountry "ENG"]
[TimeControl "40/5400+30:1800+30"]

1. Nf3 {[%emt 0:00:11]} d5 {[%emt 0:00:08]} 2. d4 {[%emt 0:00:16]} Nf6 {[%emt 0:00:14]} 3. c4 {[%emt 0:00:13]} dxc4 {[%emt 0:00:16]} 4. Qa4+ {[%emt 0:00:53]} Nc6 {[%emt 0:00:28]} 5. Qxc4 {[%emt 0:00:45]} Be6 {[%emt 0:00:06]} 6. Qa4 {[%emt 0:03:37]} Bd7 {[%emt 0:00:12]} 7. Nc3 {[%emt 0:08:54]} e5 {[%emt 0:04:27]} 8. d5 Nb4 {[%emt 0:07:30]} 9. Qb3 {[%emt 0:10:16]} Bf5 {[%emt 0:02:34]} 10. e4 {[%emt 0:01:59]} Nxe4 {[%emt 0:11:49]} 11. Bb5+ {[%emt 0:02:12]} c6 {[%emt 0:01:08]} 12. dxc6 {[%emt 0:06:01]} bxc6 {[%emt 0:01:55]} 13. Bc4 {[%emt 0:10:15]} Nd3+ {[%emt 0:30:41]} 14. Kf1 {[%emt 0:08:21]} Nd6 {[%emt 0:08:01]} 15. Bxd3 {[%emt 0:09:35]} Bxd3+ {[%emt 0:00:04]} 16. Kg1 {[%emt 0:01:02]} f6 {[%emt 0:03:35]} 17. h3 {[%emt 0:08:58]} Be7 {[%emt 0:06:20]} 18. Kh2 {[%emt 0:02:04]} Qb8 {[%emt 0:02:56]} 19. Rd1 {[%emt 0:05:49]} Qxb3 {[%emt 0:02:20]} 20. axb3 {[%emt 0:00:10]} Bc2 {[%emt 0:00:11]} 21. Re1 {[%emt 0:01:11]} Bxb3 {[%emt 0:00:33]} 22. Be3 {[%emt 0:02:49]} a5 {[%emt 0:02:19]} 23. Nd2 {[%emt 0:01:14]} Bd5 {[%emt 0:01:14]} 24. b4 {[%emt 0:01:19]} a4 {[%emt 0:04:04]} 25. Rxa4 {[%emt 0:00:55]} Rxa4 {[%emt 0:00:16]} 26. Nxa4 {[%emt 0:00:08]} Kf7 {[%emt 0:00:25]} 27. Bc5 {[%emt 0:01:59]} Ra8 {[%emt 0:01:09]} 28. Nc3 {[%emt 0:02:20]} Nb5 {[%emt 0:02:03]} 29. Bxe7 {[%emt 0:03:18]} Kxe7 {[%emt 0:00:29]} 30. Nxb5 {[%emt 0:04:24]} cxb5 {[%emt 0:00:06]} 31. f4 {[%emt 0:01:58]} Ra2 {[%emt 0:00:49]} 32. Re2 {[%emt 0:00:17]} Ke6 {[%emt 0:02:24]} 33. fxe5 {[%emt 0:00:59]} fxe5 {[%emt 0:00:04]} 34. Kg3 {[%emt 0:00:28]} Rb2 {[%emt 0:00:51]} 35. Kf2 {[%emt 0:00:35]} Rxb4 {[%emt 0:00:34]} 36. Ke3 {[%emt 0:01:31]} Ra4 {[%emt 0:00:53]} 37. Kd3 {[%emt 0:01:02]} Ra3+ {[%emt 0:00:22]} 38. Kc2 {[%emt 0:00:16]} Rg3 {[%emt 0:00:21]} 0-1